[Event "Superbet Blitz Poland 2022"]
[Site "Warsaw"]
[Date "2022.05.23"]
[Round "14.4"]
[White "Korobov, Anton"]
[Black "Rapport, Richard"]
[Result "1-0"]
[ECO "A77"]
[WhiteElo "2671"]
[BlackElo "2776"]
[Annotator "TA"]
[PlyCount "101"]
[EventDate "2022.05.22"]
[EventType "tourn"]
[EventCountry "POL"]
[SourceTitle "playchess.com"]
[Source "ChessBase"]
[SourceQuality "1"]
[TimeControl "300+2"]

{[%evp 20,101,44,37,63,28,26,37,22,22,24,20,31,10,8,0,0,0,0,-6,0,0,-11,-18,0,-8,6,5,7,0,0,0,94,0,0,0,0,0,207,192,357,339,287,9,8,11,45,45,45,45,157,157,157,157,148,76,154,155,157,0,0,0,12830,12831,12831,12831,12832,12832,12839,12832,12833,12834,12836,12836,12841,12841,12841,12842,12842,12843,12845,12845,12845,12846]} 1. d4 {[%emt 0:00:02]} e6 {[%emt 0:00:02]} 2. c4 {[%emt 0:00:01]} c5 {[%emt 0:00:01]} 3. Nf3 {[%emt 0:00:08][%cal Bg1f3,Bf3d2,Bd2c4,Bc4d6][%mdl 32]} Nf6 {[%emt 0:00:04]} 4. d5 {[%emt 0:00:03]} d6 {[%emt 0:00:01]} 5. Nc3 {[%emt 0:00:02]} exd5 {[%emt 0:00:01]} 6. cxd5 {[%emt 0:00:01]} g6 {[%emt 0:00:01]} 7. Nd2 {[%emt 0:00:02]} Nbd7 {[%emt 0:00:02]} 8. e4 {[%emt 0:00:02]} Bg7 {[%emt 0:00:01]} 9. Be2 {[%emt 0:00:01]} O-O {[%emt 0:00:02][%cal Bh8f8,Bf8e8,Be8e4][%mdl 32]} 10. O-O {[%emt 0:00:03]} Re8 {[%emt 0:00:01]} 11. h3 {[%emt 0:00:01]} g5 {[%emt 0:00:11] A77: Modern Benoni: Classical: 9...Re8 10 Nd2: 10...a6 and 10...Nbd7.} 12. Nc4 {[%emt 0:00:05]} Nxe4 {[%emt 0:00:10]} 13. Nxe4 {[%emt 0:00:02][%mdl 64] Remove Defender} Rxe4 {[%emt 0:00:02] White is slightly better.} 14. Nxd6 {[%emt 0:00:02]} Rd4 {[%emt 0:00:09]} 15. Qc2 {[%emt 0:00:01]} Ne5 {[%emt 0:00:16] [#]} 16. Qxc5 $146 {[%emt 0:00:45] White wants to play Be3.} ({Predecessor:} 16. Nf5 Bxf5 17. Qxf5 Rxd5 18. Bxg5 Qxg5 19. Qxg5 Nf3+ 20. Bxf3 Rxg5 21. Rad1 Bxb2 22. Rb1 {1-0 (61) Costachi,M (2471)-Gabrielian,A (2459) Chess.com INT 2021}) 16... b6 $1 {[%emt 0:00:02]} 17. Qxd4 {[%emt 0:00:18]} ({Don't go for} 17. Bxg5 $2 Qxg5 $1 18. Qc3 (18. Qxd4 $2 Nf3+ 19. Bxf3 Bxd4 $19) 18... Bd7 $1 $19) 17... Nf3+ $1 {[%emt 0:00:02]} 18. Bxf3 {[%emt 0:00:02]} Bxd4 {[%emt 0:00:01]} 19. Nb5 $132 {[%emt 0:00:02][%mdl 2048] White is fighting back} Be5 {[%emt 0:00:39]} 20. Re1 {[%emt 0:00:26]} Qf6 {[%emt 0:00:05]} 21. Nc3 {[%emt 0:00:08][%cal Od5d6] Threatens to win with d6!} h6 {[%emt 0:00:18][%mdl 1024] Black has compensation.} 22. Bd2 {[%emt 0:00:38][%cal Od5d6] Strongly threatening d6!} Bb7 {[%emt 0:00:22]} 23. Re2 {[%emt 0:00:27] next Rae1 is good for White.} Ba6 {[%emt 0:00:35]} 24. Re3 {[%emt 0:00:23][%cal Od5d6]} Bf4 {[%emt 0:00:12]} 25. Ne4 {[%emt 0:00:02]} Qg6 {[%emt 0:00:35] [#]} (25... Qxb2 $11 {keeps the balance.} 26. Bc3 Qa3 27. Nf6+ Kf8 28. Nd7+ Kg8 29. Nf6+ Kf8 30. Nd7+ Kg8 31. Nf6+) 26. Bc3 $1 {[%emt 0:00:01]} Bxe3 $11 {[%emt 0:00:08]} 27. Nf6+ {[%emt 0:00:01]} Kg7 $1 {[%emt 0:00:36]} 28. fxe3 {[%emt 0:00:15]} Qxf6 $2 {[%emt 0:00:01]} 29. Rc1 $18 {[%emt 0:00:08]} ({But not} 29. Bxf6+ $6 Kxf6 30. Kh2 Rc8 $14) 29... Rc8 $2 {[%emt 0:00:03]} (29... Bb5 30. Bxf6+ Kxf6) 30. Bxf6+ {[%emt 0:00:08]} Kxf6 {[%emt 0:00:01]} 31. Rc6+ {[%emt 0:00:11]} (31. Rxc8 $18 Bxc8 32. Bg4) 31... Rxc6 $11 {[%emt 0:00:02]} 32. dxc6 {[%emt 0:00:01][%mdl 4096] Endgame KB-KB} Ke5 {[%emt 0:00:02]} 33. Kf2 {[%emt 0:00:00]} Kd6 {[%emt 0:00:07]} 34. Kg3 {[%emt 0:00:04] And now Kg4 would win.} f5 {[%emt 0:00:08]} (34... Bc8 $1 $14) 35. e4 $1 $16 {[%emt 0:00:04]} Bc8 {[%emt 0:00:12]} (35... f4+ $2 36. Kg4 $18) 36. exf5 {[%emt 0:00:02]} Bxf5 {[%emt 0:00:01] [#]} 37. a3 {[%emt 0:00:01]} ({Better is} 37. h4 $1) 37... a5 {[%emt 0:00:08] [#]} (37... Kc7 $142) 38. h4 $1 {[%emt 0:00:03]} Be6 {[%emt 0:00:10]} 39. b4 $2 {[%emt 0:00:10]} (39. hxg5 $16 hxg5 40. Bg4) 39... axb4 $11 {[%emt 0:00:01]} 40. axb4 {[%emt 0:00:01]} b5 $2 {[%emt 0:00:02][%mdl 8192]} (40... Bf5 $11) 41. hxg5 $18 {[%emt 0:00:05] White is clearly winning.} hxg5 {[%emt 0:00:01]} 42. Kf2 {[%emt 0:00:07]} Bf5 {[%emt 0:00:04]} 43. Ke3 {[%emt 0:00:02]} Ke5 {[%emt 0:00:01]} 44. c7 {[%emt 0:00:06]} Kd6 {[%emt 0:00:02]} 45. Kd4 {[%emt 0:00:01]} Kxc7 {[%emt 0:00:07]} 46. Kc5 {[%emt 0:00:01]} g4 {[%emt 0:00:17]} 47. Bc6 {[%emt 0:00:06]} g3 {[%emt 0:00:02]} 48. Kxb5 {[%emt 0:00:03]} Kd6 {[%emt 0:00:23]} 49. Kb6 {[%emt 0:00:03]} Ke5 {[%emt 0:00:02]} 50. Kc5 {[%emt 0:00:06]} Kf4 {[%emt 0:00:03]} 51. b5 {[%emt 0:00:07] Weighted Error Value: White=0.29 (precise) /Black=0.39} 1-0

[Event "Superbet Blitz Poland 2022"]
[Site "Warsaw"]
[Date "2022.05.23"]
[Round "14.5"]
[White "Duda, Jan-Krzysztof"]
[Black "Wojtaszek, Radoslaw"]
[Result "1-0"]
[ECO "B26"]
[WhiteElo "2750"]
[BlackElo "2696"]
[Annotator "TA"]
[PlyCount "83"]
[EventDate "2022.05.22"]
[EventType "tourn"]
[EventCountry "POL"]
[SourceTitle "playchess.com"]
[Source "ChessBase"]
[SourceQuality "1"]
[TimeControl "300+2"]

{[%evp 12,83,25,19,16,-7,11,4,12,10,53,30,33,30,36,33,23,-4,0,-2,3,-22,0,0,0,-26,17,-12,-13,-16,150,132,114,40,64,79,112,114,116,120,124,121,123,119,708,131,118,112,110,102,109,58,58,58,60,56,60,52,53,60,60,37,46,39,226,203,208,213,199,196,427,395,457,418]} 1. e4 {[%emt 0:00:01]} c5 {[%emt 0:00:01]} 2. Nc3 {[%emt 0:00:01]} a6 {[%emt 0:00:01]} 3. d3 {[%emt 0:00:14]} Nc6 {[%emt 0:00:05]} 4. g3 {[%emt 0:00:05]} g6 {[%emt 0:00:03]} 5. Bg2 {[%emt 0:00:02]} Bg7 {[%emt 0:00:01]} 6. Be3 {[%emt 0:00:05]} d6 {[%emt 0:00:02]} 7. Qd2 {[%emt 0:00:02]} Rb8 {[%emt 0:00:22] B26: Closed Sicilian: 3 g3, lines with early Be3.} 8. h3 $5 {[%emt 0:00:10][%mdl 4] Leaves trodden paths.} Nd4 {[%emt 0:00:07]} 9. Nd1 {[%emt 0:00:17] [#]} e5 $146 {[%emt 0:00:07] The position is equal.} ({Predecessor:} 9... b5 10. c3 Nc6 11. Ne2 Bb7 12. O-O e6 13. d4 c4 14. d5 exd5 15. exd5 Nce7 {½-½ (121) Bueno,A (2274)-Chrestani,G (1973) Lages 2008}) 10. c3 {[%emt 0:00:03]} Nc6 {[%emt 0:00:02]} 11. f4 {[%emt 0:00:12]} b6 {[%emt 0:00:53]} 12. Nf3 {[%emt 0:00:12]} Nge7 {[%emt 0:00:02]} 13. O-O {[%emt 0:00:14]} O-O {[%emt 0:00:01]} 14. g4 {[%emt 0:00:14]} (14. f5 $5) 14... f5 {[%emt 0:00:59]} 15. Nf2 {[%emt 0:00:02]} Kh8 {[%emt 0:00:12]} 16. Rad1 {[%emt 0:00:40]} exf4 {[%emt 0:00:21]} 17. Bxf4 {[%emt 0:00:01]} Ne5 $1 {[%emt 0:00:01]} 18. d4 {[%emt 0:01:25]} cxd4 {[%emt 0:00:01]} 19. cxd4 {[%emt 0:00:02]} Nxf3+ {[%emt 0:00:05]} 20. Bxf3 {[%emt 0:00:01]} Nc6 $2 {[%emt 0:00:01]} (20... fxg4 $11 21. Bxg4 (21. Nxg4 h5 $15) 21... Nc6) 21. exf5 $16 {[%emt 0:00:35]} Nxd4 {[%emt 0:00:05]} 22. Bg2 {[%emt 0:00:04]} (22. Qe3 $1 $16 Nc2 23. Qd2) 22... gxf5 {[%emt 0:00:13]} 23. Be3 $1 {[%emt 0:00:01]} Ne6 {[%emt 0:00:14] Hoping for ...f4.} 24. gxf5 {[%emt 0:00:04]} (24. Qxd6 $6 Qxd6 25. Rxd6 f4 26. Bxb6 f3 $11) 24... Rxf5 {[%emt 0:00:19]} 25. Ng4 $1 {[%emt 0:00:23]} (25. Qxd6 $6 Qxd6 26. Rxd6 Bxb2 $11) 25... Rxf1+ {[%emt 0:00:13]} 26. Rxf1 {[%emt 0:00:01]} Bb7 {[%emt 0:00:00]} 27. Nh6 $1 {[%emt 0:00:08] White is more active.} Qh4 $2 {[%emt 0:00:39][%mdl 8192]} (27... Qe8 $16) 28. Nf5 $2 {[%emt 0:00:07]} (28. Qxd6 $18 {has better winning chances.} Re8 29. Nf5 (29. Bxb7 Bxh6 30. Bxh6 Qxh6 $16)) 28... Qf6 {[%emt 0:00:31]} 29. Nxd6 {[%emt 0:00:08][%mdl 64] Discovered Attack} ({Much weaker is} 29. Qxd6 $6 Rd8 30. Qe7 (30. Qxb6 Bxg2 31. Kxg2 Qg6+ 32. Kh1 Rf8 $17) 30... Bxg2 31. Qxf6 Bxf6 $11) 29... Qg6 {[%emt 0:00:01]} 30. Nxb7 {[%emt 0:00:04]} Rxb7 {[%emt 0:00:01] [#]} 31. Kh1 {[%emt 0:00:07]} ({White should try} 31. Qd6 $1 $16) 31... Rb8 $1 $14 {[%emt 0:00:03]} 32. Qd6 $36 {[%emt 0:00:05][%csl LRb6,LRb8][%mdl 2048] White is more active.} Rg8 {[%emt 0:00:13][%cal Og6g2] And now ...Qxg2+! would win.} 33. Rg1 {[%emt 0:00:05]} (33. Qxb6 {keeps more tension.} Be5 34. Qc6 Qg3 35. Bg1) 33... Nc5 {[%emt 0:00:04]} 34. Qxg6 {[%emt 0:00:08]} hxg6 {[%emt 0:00:01]} 35. b4 {[%emt 0:00:02]} Nd3 {[%emt 0:00:01]} 36. Be4 {[%emt 0:00:05]} Re8 {[%emt 0:00:03]} 37. Rg4 {[%emt 0:00:01]} Ne5 $2 {[%emt 0:00:04]} (37... g5 $1 $14) 38. Rh4+ $18 {[%emt 0:00:03]} Kg8 {[%emt 0:00:01] [#]} 39. Bd5+ $1 {[%emt 0:00:01] This bishop pair is nice.} ({Resist} 39. Bxb6 Bf6 40. Bd5+ Kg7) 39... Kf8 {[%emt 0:00:00]} 40. Bxb6 {[%emt 0:00:02] Black must now prevent Bc5+.} Bf6 $2 {[%emt 0:00:04]} (40... Nd7) 41. Rh7 {[%emt 0:00:02] Strongly threatening Bc5+.} Re7 {[%emt 0:00:04]} 42. Bc5 {[%emt 0:00:02] Weighted Error Value: White=0.24 (precise) /Black=0.36} 1-0

[Event "Superbet Blitz Poland 2022"]
[Site "Warsaw"]
[Date "2022.05.23"]
[Round "15.1"]
[White "Duda, Jan-Krzysztof"]
[Black "Aronian, Levon"]
[Result "1/2-1/2"]
[ECO "A13"]
[WhiteElo "2750"]
[BlackElo "2765"]
[Annotator "TA"]
[PlyCount "108"]
[EventDate "2022.05.22"]
[EventType "tourn"]
[EventCountry "POL"]
[SourceTitle "playchess.com"]
[Source "ChessBase"]
[SourceQuality "1"]
[TimeControl "300+2"]

{[%evp 9,108,-10,-12,0,31,41,48,0,27,-22,6,12,8,7,7,0,8,12,14,0,6,0,0,0,0,0,0,0,7,0,0,0,10,0,0,0,0,0,3,0,0,0,0,0,0,0,0,0,0,0,0,-2,0,0,0,-2,-2,-12,-10,-8,-14,-9,-2,-5,0,0,0,0,0,0,0,0,0,0,0,0,0,-62,0,0,0,0,0,0,0,0,0,0,0,0,0,0,0,0,0,0,0,0,0,0,0]} 1. c4 {[%emt 0:00:01]} Nf6 {[%emt 0:00:01]} 2. Nf3 {[%emt 0:00:03]} e6 {[%emt 0:00:02]} 3. g3 {[%emt 0:00:02]} d5 {[%emt 0:00:01]} 4. b3 {[%emt 0:00:01]} d4 {[%emt 0:00:05]} 5. Bg2 {[%emt 0:00:03]} Nc6 {[%emt 0:00:09]} 6. O-O {[%emt 0:00:14] A13: English Opening: 1...e6.} a5 {[%emt 0:00:13]} 7. e3 {[%emt 0:00:33]} e5 {[%emt 0:00:11]} 8. d3 {[%emt 0:01:24]} (8. exd4 $14 exd4 9. Na3 (9. Ng5 Be7 $11)) 8... Bc5 {[%emt 0:00:20]} 9. Ba3 {[%emt 0:00:17]} (9. exd4 $142 $1 Nxd4 10. Ba3 Nxf3+ 11. Qxf3 Bxa3 12. Nxa3) 9... Qd6 {[%emt 0:00:42]} 10. Bxc5 {[%emt 0:00:20]} Qxc5 {[%emt 0:00:02]} 11. exd4 {[%emt 0:00:02]} Nxd4 {[%emt 0:00:01] [#]} 12. Nbd2 $146 {[%emt 0:00:40]} ({Predecessor:} 12. Nxe5 O-O 13. Nf3 Bg4 14. Nbd2 Qh5 15. Re1 Rfe8 16. Re3 Rad8 17. Rc1 Qc5 18. Qe1 Nxf3+ 19. Bxf3 Bxf3 20. Nxf3 Rxe3 21. Qxe3 Qxe3 22. fxe3 Rxd3 {0-1 (35) Wieczorek,O (2497)-Paravyan,D (2605) Chess.com INT 2019}) 12... O-O {[%emt 0:00:12]} 13. Nxd4 {[%emt 0:00:03]} Qxd4 {[%emt 0:00:07]} 14. Nf3 {[%emt 0:00:01]} Qd6 {[%emt 0:00:01]} 15. d4 {[%emt 0:00:34]} exd4 {[%emt 0:00:31]} 16. Qxd4 {[%emt 0:00:02]} Qxd4 {[%emt 0:00:05]} 17. Nxd4 {[%emt 0:00:02]} c6 {[%emt 0:00:01]} 18. Rfe1 {[%emt 0:00:01]} Rd8 {[%emt 0:00:07]} 19. Rad1 {[%emt 0:00:08][%cal Od4c6] aiming for Nxc6!} Bg4 {[%emt 0:00:02]} 20. f3 {[%emt 0:00:01]} Bd7 {[%emt 0:00:03]} 21. Bf1 {[%emt 0:00:14]} Kf8 {[%emt 0:00:07]} 22. Kf2 {[%emt 0:00:01]} c5 {[%emt 0:00:17]} 23. Ne2 {[%emt 0:00:09]} a4 {[%emt 0:00:08]} 24. Nc3 {[%emt 0:00:03]} axb3 {[%emt 0:00:07]} 25. axb3 {[%emt 0:00:01]} Bc6 {[%emt 0:00:02]} 26. Rxd8+ {[%emt 0:00:10]} Rxd8 {[%emt 0:00:01]} 27. Ra1 {[%emt 0:00:17]} Rd2+ {[%emt 0:00:12]} 28. Be2 $1 {[%emt 0:00:05]} Rb2 {[%emt 0:00:28]} 29. Rb1 {[%emt 0:00:05]} Rc2 {[%emt 0:00:12]} 30. Nd1 {[%emt 0:00:04]} g6 {[%emt 0:00:20]} 31. Rb2 {[%emt 0:00:01]} Rc1 {[%emt 0:00:06]} 32. b4 {[%emt 0:00:04]} cxb4 {[%emt 0:00:03]} 33. Rxb4 {[%emt 0:00:01]} Nd7 {[%emt 0:00:06]} 34. Ne3 {[%emt 0:00:12]} Ke7 {[%emt 0:00:07]} 35. Rb2 {[%emt 0:00:01]} Nc5 {[%emt 0:00:09]} 36. h4 {[%emt 0:00:01]} h5 {[%emt 0:00:15]} 37. Rd2 {[%emt 0:00:01]} Ra1 {[%emt 0:00:08]} 38. Kg2 {[%emt 0:00:05]} Nb3 {[%emt 0:00:06]} 39. Rb2 {[%emt 0:00:05]} Nd4 {[%emt 0:00:03]} 40. Nc2 {[%emt 0:00:04]} Nxc2 {[%emt 0:00:08]} 41. Rxc2 $11 {[%emt 0:00:01][%mdl 4096] Endgame KRB-KRB} Kd6 {[%emt 0:00:06]} 42. Kf2 {[%emt 0:00:01]} Kc5 {[%emt 0:00:03]} 43. g4 {[%emt 0:00:03]} (43. Rc3 $11) 43... Rh1 {[%emt 0:00:07]} ({Better is} 43... hxg4 $15 44. fxg4 Ra3) 44. gxh5 {[%emt 0:00:03] The position is equal.} Rxh4 {[%emt 0:00:04]} 45. hxg6 {[%emt 0:00:01]} fxg6 {[%emt 0:00:01]} 46. Rc3 {[%emt 0:00:05]} g5 {[%emt 0:00:05]} 47. Re3 {[%emt 0:00:01]} Kd6 {[%emt 0:00:02]} 48. Kg3 {[%emt 0:00:02]} Rd4 {[%emt 0:00:04]} 49. Bf1 {[%emt 0:00:02]} Bd7 {[%emt 0:00:02]} 50. Be2 {[%emt 0:00:02]} b6 {[%emt 0:00:02]} 51. Rb3 {[%emt 0:00:02]} Kc5 {[%emt 0:00:01]} 52. Re3 {[%emt 0:00:01]} Kd6 {[%emt 0:00:02]} 53. Rb3 {[%emt 0:00:01]} Kc5 {[%emt 0:00:01]} 54. Re3 {[%emt 0:00:01]} Kd6 {[%emt 0:00:01] Weighted Error Value: White=0.06 (flawless) /Black=0.05 (flawless)} 1/2-1/2

[Event "Superbet Blitz Poland 2022"]
[Site "Warsaw"]
[Date "2022.05.23"]
[Round "15.2"]
[White "Wojtaszek, Radoslaw"]
[Black "Korobov, Anton"]
[Result "0-1"]
[ECO "E17"]
[WhiteElo "2696"]
[BlackElo "2671"]
[Annotator "TA"]
[PlyCount "110"]
[EventDate "2022.05.22"]
[EventType "tourn"]
[EventCountry "POL"]
[SourceTitle "playchess.com"]
[Source "ChessBase"]
[SourceQuality "1"]
[TimeControl "300+2"]

{[%evp 13,110,12,14,19,6,20,9,0,0,0,22,0,0,-6,0,0,14,11,35,33,35,40,36,19,28,10,17,-4,32,25,25,0,0,0,0,-52,0,0,17,11,51,0,185,181,178,158,175,104,97,104,204,181,249,237,260,236,234,51,51,5,22,21,166,162,120,149,127,35,35,35,60,0,0,-670,-587,-654,-639,-1256,-1230,-1147,-27,-1284,-1299,-1195,-1019,-960,-925,-29984,-29985,-29985,-29986,-29986,-29987,-29987,-29988,-29988,-29989,-29989,-29990]} 1. d4 {[%emt 0:00:01]} Nf6 {[%emt 0:00:02]} 2. c4 {[%emt 0:00:01]} e6 {[%emt 0:00:01]} 3. Nf3 {[%emt 0:00:01]} b6 {[%emt 0:00:06]} 4. g3 {[%emt 0:00:01]} Bb7 {[%emt 0:00:01]} 5. Bg2 {[%emt 0:00:02]} Be7 {[%emt 0:00:01]} 6. O-O {[%emt 0:00:02]} O-O {[%emt 0:00:02]} 7. Re1 {[%emt 0:00:01]} Na6 {[%emt 0:00:03][%cal Bb8a6,Ba6c7,Bc7e6][%mdl 32]} 8. a3 {[%emt 0:00:08] E17: Queen's Indian: 4 g3 Bb7 5 Bg2 Be7.} d5 {[%emt 0:00:25]} 9. cxd5 {[%emt 0:00:04]} exd5 {[%emt 0:00:02]} 10. Nc3 {[%emt 0:00:03] The position is equal.} c5 {[%emt 0:00:13]} 11. Bf4 {[%emt 0:00:03]} Nc7 {[%emt 0:00:16] [#]} 12. a4 $146 {[%emt 0:00:11]} ({Predecessor:} 12. e3 Ne6 13. Be5 Qd7 14. Qc2 Rad8 15. Red1 Rfe8 16. b4 Ng4 17. bxc5 bxc5 18. Rab1 {½-½ (30) Benz,G (2513)-Hacker,C (2513) ICCF email 2020}) 12... Ne6 {[%emt 0:00:09]} 13. Be5 {[%emt 0:00:01]} Ng4 {[%emt 0:00:28]} 14. e3 {[%emt 0:00:37][%cal Oa4a5]} Nxe5 {[%emt 0:00:21]} 15. Nxe5 {[%emt 0:00:02]} cxd4 {[%emt 0:00:06]} 16. exd4 {[%emt 0:00:01][%cal Oe5f7]} Bf6 {[%emt 0:00:02]} 17. Qd3 {[%emt 0:00:15]} a6 {[%emt 0:00:11]} 18. Rad1 {[%emt 0:00:05]} Qd6 {[%emt 0:00:11]} 19. Qf5 {[%emt 0:00:06][%cal Oc3d5]} Rae8 {[%emt 0:00:12]} 20. f4 {[%emt 0:00:06]} b5 {[%emt 0:00:18]} 21. axb5 {[%emt 0:00:08]} axb5 {[%emt 0:00:01]} 22. Kh1 {[%emt 0:00:34]} b4 {[%emt 0:00:04]} 23. Ne2 {[%emt 0:00:01]} Bd8 {[%emt 0:00:10]} 24. Ng1 {[%emt 0:00:19]} (24. Qd3 $11) 24... g6 {[%emt 0:00:04]} (24... Bb6 $1 $15) 25. Qd3 $11 {[%emt 0:00:04]} f6 {[%emt 0:00:06]} 26. Ng4 {[%emt 0:00:13]} Ng7 {[%emt 0:00:02] Prevents f5.} (26... Kg7 {keeps more tension.} 27. Ne2 Nc7 28. Ne3 Ba6) 27. Ne3 {[%emt 0:00:06]} (27. Qb5 $14 Bb6 28. Nh6+ Kh8 29. Rxe8 Nxe8 30. Qxe8) 27... Re4 $2 {[%emt 0:00:27]} 28. Bxe4 $18 {[%emt 0:00:40]} dxe4 {[%emt 0:00:01]} 29. Qb5 {[%emt 0:00:01]} Ba6 {[%emt 0:00:30]} 30. Qd5+ {[%emt 0:00:10]} (30. Qc5 $1 $18 {[%cal Rc5d6]} Qxc5 31. dxc5) 30... Qxd5 $16 {[%emt 0:00:02]} 31. Nxd5 {[%emt 0:00:01]} b3 {[%emt 0:00:10]} (31... Bb7 $16 32. Ne3 (32. Nxb4 Ba5 $17) 32... Nf5) 32. Ne2 {[%emt 0:00:16]} ({Not} 32. Rxe4 $2 Bb7 33. Ne7+ (33. Nc3 $2 f5 $19) 33... Bxe7 $19) 32... f5 {[%emt 0:00:04]} (32... Bb7 $142) 33. Ra1 $18 {[%emt 0:00:16]} Bc4 {[%emt 0:00:08]} 34. Nec3 {[%emt 0:00:04]} Ne6 {[%emt 0:00:04]} 35. Ne3 $2 {[%emt 0:00:02]} (35. Ra4 $1 $18 {[%cal Ra4c4]} Bxd5 36. Nxd5) 35... Bd3 $14 {[%emt 0:00:03]} 36. d5 {[%emt 0:00:02]} (36. Ra4 $14) 36... Nd4 $11 {[%emt 0:00:02]} 37. d6 $1 {[%emt 0:00:34]} Rf6 {[%emt 0:00:19]} (37... Nc2 $11) 38. d7 $18 {[%emt 0:00:15]} Rd6 {[%emt 0:00:01] [#]} 39. Ra8 $1 {[%emt 0:00:10]} (39. Ra7 Nc2 40. Ra8 (40. Nxc2 bxc2 41. Kg2 Bc4 $17) 40... Nxe1 $15) 39... Rxd7 {[%emt 0:00:02] [#]} 40. Ncd5 {[%emt 0:00:01]} (40. Na4 $1 $16 {[%cal Ra4c5] Black must now prevent Nc5.} Ne6 41. Nb6) 40... Kf7 $1 $14 {[%emt 0:00:08] ...Nc2 is the strong threat.} 41. Rea1 {[%emt 0:00:01]} Ke6 {[%emt 0:00:10]} 42. Kg1 {[%emt 0:00:07]} (42. R1a3 $14) 42... Nc2 $11 {[%emt 0:00:03]} 43. R1a5 {[%emt 0:00:08][%mdl 8192]} Nxe3 $19 {[%emt 0:00:09] Active counter play!} 44. Nxe3 {[%emt 0:00:02]} Bb6 {[%emt 0:00:05]} ({Worse is} 44... Bxa5 45. Rxa5 Be2 46. Re5+ Kf7 47. Rd5 $19) 45. Re5+ {[%emt 0:00:19]} Kf7 {[%emt 0:00:03]} 46. Kf2 {[%emt 0:00:01]} Bc4 $2 {[%emt 0:00:05] A strong pair of Bishops.} (46... Rc7 $19 {( -> ...Rc2+)} 47. g4 Rc2+ 48. Kg3 Bxe3) 47. Rh8 $2 {[%emt 0:00:06][%mdl 8192]} (47. Ra4 $11 Rd2+ 48. Ke1 Re2+ 49. Kd1 Bxe3 50. Rxc4 Rd2+ 51. Ke1) 47... Rd2+ {[%emt 0:00:03][%mdl 64] Skewer, Double Attack} 48. Ke1 {[%emt 0:00:00]} Bxe3 {[%emt 0:00:02]} 49. Rxh7+ {[%emt 0:00:02]} Kf6 {[%emt 0:00:01]} 50. Re8 {[%emt 0:00:03]} Rxb2 {[%emt 0:00:09][%cal Rb2b1] Black mates.} 51. Rf8+ {[%emt 0:00:01]} Ke6 {[%emt 0:00:01][%cal Rb2b1]} 52. Re8+ {[%emt 0:00:01]} Kd6 {[%emt 0:00:00][%cal Rb2b1]} 53. Rd8+ {[%emt 0:00:01]} Kc5 {[%emt 0:00:01]} 54. Rc7+ {[%emt 0:00:04]} Kb4 {[%emt 0:00:01]} 55. Rb8+ {[%emt 0:00:02]} Kc3 {[%emt 0:00:01] Weighted Error Value: White=0.74/Black=0.31} 0-1

[Event "Superbet Blitz Poland 2022"]
[Site "Warsaw"]
[Date "2022.05.23"]
[Round "15.3"]
[White "Rapport, Richard"]
[Black "Gavrilescu, David"]
[Result "1-0"]
[ECO "A06"]
[WhiteElo "2776"]
[BlackElo "2518"]
[Annotator "TA"]
[PlyCount "57"]
[EventDate "2022.05.22"]
[EventType "tourn"]
[EventCountry "POL"]
[SourceTitle "playchess.com"]
[Source "ChessBase"]
[SourceQuality "1"]
[TimeControl "300+2"]

{[%evp 9,57,-32,-17,-21,-4,-14,-10,-17,-17,-17,-7,-16,-7,-6,0,0,0,10,8,0,108,-9,-12,-15,0,0,0,0,0,2,69,61,64,63,80,74,87,75,97,96,102,76,83,68,68,68,68,68,460,437]} 1. Nc3 {[%emt 0:00:02]} d5 {[%emt 0:00:14]} 2. e3 {[%emt 0:00:02]} Nf6 {[%emt 0:00:05]} 3. Nf3 {[%emt 0:00:10]} c5 {[%emt 0:00:14]} 4. Bb5+ {[%emt 0:00:03]} Bd7 {[%emt 0:00:09]} 5. Qe2 {[%emt 0:00:02]} Nc6 {[%emt 0:00:22]} 6. O-O {[%emt 0:00:04] A06: Réti Opening: 1 Nf3 d5.} g6 {[%emt 0:00:02]} 7. Bxc6 {[%emt 0:00:04]} Bxc6 {[%emt 0:00:01]} 8. Ne5 {[%emt 0:00:02] The position is equal.} Qc7 {[%emt 0:00:02]} 9. Nxc6 {[%emt 0:00:04]} Qxc6 {[%emt 0:00:01]} 10. d3 {[%emt 0:00:02]} Bg7 {[%emt 0:00:03]} 11. e4 {[%emt 0:00:02] [#]} dxe4 $146 {[%emt 0:00:16]} ({Predecessor:} 11... d4 12. Nb1 e5 13. Nd2 b5 14. a4 bxa4 15. Nc4 Nd7 16. f4 f6 17. fxe5 Nxe5 18. Nxe5 fxe5 {1-0 (35) Popel,S-Marchand,E Rochester 1958}) 12. dxe4 {[%emt 0:00:02]} O-O {[%emt 0:00:02][%cal Bh8f8,Bf8d8,Bd8d4][%mdl 32]} 13. Bg5 {[%emt 0:00:11]} Rfd8 {[%emt 0:00:26]} 14. Rad1 {[%emt 0:00:07]} a6 {[%emt 0:00:04]} (14... h6 $11 15. Bh4 Rd4) 15. a4 {[%emt 0:00:28]} (15. e5 $16) 15... Rd4 $11 {[%emt 0:00:15][%cal Rf6e4]} 16. e5 {[%emt 0:00:23]} Nd5 {[%emt 0:00:02]} (16... Rg4 $2 17. f4 Rxg5 18. exf6 $18) 17. Nxd5 {[%emt 0:00:12]} Qxd5 {[%emt 0:00:20]} 18. c3 {[%emt 0:00:06]} Rxd1 {[%emt 0:00:09]} 19. Rxd1 {[%emt 0:00:01]} Qxe5 {[%emt 0:00:02]} ({Better is} 19... Qe6 $11) 20. Qxe5 $14 {[%emt 0:00:04]} Bxe5 {[%emt 0:00:01]} 21. Bxe7 $11 {[%emt 0:00:04][%mdl 4096] Endgame KRB-KRB} b5 {[%emt 0:00:14]} 22. axb5 {[%emt 0:00:19]} axb5 {[%emt 0:00:02][%cal Ob5b4]} 23. Bxc5 {[%emt 0:00:02]} h5 {[%emt 0:00:18]} 24. g3 {[%emt 0:00:10]} Ra2 {[%emt 0:00:03]} 25. Rb1 {[%emt 0:00:06]} g5 {[%emt 0:00:08]} 26. Kf1 {[%emt 0:00:06]} Kh7 {[%emt 0:00:10]} 27. Ke1 {[%emt 0:00:04]} Kg6 {[%emt 0:00:03]} 28. Kd2 {[%emt 0:00:06] Hoping for Ba3.} Kf5 $2 {[%emt 0:00:02][%mdl 8192] [#]} (28... Ra4 $14) 29. Ba3 $1 {[%emt 0:00:05] Weighted Error Value: White=0.15 (very precise) /Black=0.51} 1-0